[Event "*** Titled Tuesday Blitz"]
[Site "Chess.com"]
[Date "2020.01.07"]
[Round "3"]
[White "ValeriyGrinev"]
[Black "Keranke"]
[Result "1-0"]
[WhiteElo "2554"]
[BlackElo "2729"]
[TimeControl "180+2"]
[EndTime "13:37:28 PST"]
[Termination "ValeriyGrinev won by resignation"]

1. d4 {[%clk 0:03:01.9]} 1... g6 {[%clk 0:02:59.8]} 2. c4 {[%clk 0:03:03]} 2...
Bg7 {[%clk 0:03:01.1]} 3. e4 {[%clk 0:03:04.6]} 3... d6 {[%clk 0:03:02]} 4. Nc3
{[%clk 0:03:05.6]} 4... Nf6 {[%clk 0:03:03.1]} 5. Nf3 {[%clk 0:03:06.1]} 5...
O-O {[%clk 0:03:04.6]} 6. Be2 {[%clk 0:03:07.6]} 6... Bg4 {[%clk 0:03:05.9]} 7.
O-O {[%clk 0:03:08.7]} 7... Nfd7 {[%clk 0:03:06.7]} 8. Be3 {[%clk 0:03:09.7]}
8... Nc6 {[%clk 0:03:06.9]} 9. d5 {[%clk 0:03:05.2]} 9... Bxf3 {[%clk
0:03:07.1]} 10. gxf3 {[%clk 0:03:07.1]} 10... Na5 {[%clk 0:03:01.2]} 11. Rc1
{[%clk 0:03:04.2]} 11... c5 {[%clk 0:03:02.2]} 12. f4 {[%clk 0:03:02.6]} 12...
Nb6 {[%clk 0:02:57.8]} 13. b3 {[%clk 0:03:02.9]} 13... e6 {[%clk 0:02:58.8]} 14.
Bg4 {[%clk 0:02:48.8]} 14... exd5 {[%clk 0:02:58.7]} 15. exd5 {[%clk 0:02:47.5]}
15... f5 {[%clk 0:02:54.5]} 16. Bf3 {[%clk 0:02:48.8]} 16... Nd7 {[%clk
0:02:51.9]} 17. Qd2 {[%clk 0:02:44.5]} 17... a6 {[%clk 0:02:51.9]} 18. Ne2
{[%clk 0:02:31.1]} 18... b5 {[%clk 0:02:47]} 19. Qd3 {[%clk 0:02:27.2]} 19...
Rb8 {[%clk 0:02:40.4]} 20. Bd2 {[%clk 0:02:28]} 20... Re8 {[%clk 0:02:04.1]} 21.
Bc3 {[%clk 0:02:26]} 21... Bxc3 {[%clk 0:02:02.1]} 22. Qxc3 {[%clk 0:02:26.4]}
22... bxc4 {[%clk 0:02:02.3]} 23. bxc4 {[%clk 0:02:28.3]} 23... Rb4 {[%clk
0:02:02.1]} 24. Qd3 {[%clk 0:02:11.1]} 24... Nb6 {[%clk 0:02:01.3]} 25. Nc3
{[%clk 0:01:59.5]} 25... Naxc4 {[%clk 0:01:50.9]} 26. Rfe1 {[%clk 0:02:00.4]}
26... Rb2 {[%clk 0:01:31.6]} 27. Re6 {[%clk 0:01:54.2]} 27... Rd2 {[%clk
0:01:19.2]} 28. Qb1 {[%clk 0:01:53.1]} 28... Rxe6 {[%clk 0:01:06.4]} 29. dxe6
{[%clk 0:01:53.6]} 29... d5 {[%clk 0:01:00.8]} 30. Nxd5 {[%clk 0:01:45.5]} 30...
Nxd5 {[%clk 0:00:32.7]} 31. Rxc4 {[%clk 0:01:45]} 31... Qh4 {[%clk 0:00:17]} 32.
Qe1 {[%clk 0:01:40.9]} 32... Nb6 {[%clk 0:00:07.1]} 33. e7 {[%clk 0:01:36.6]}
1-0

[Event "*** Titled Tuesday Blitz"]
[Site "Chess.com"]
[Date "2020.01.07"]
[Round "3"]
[White "TheBigBoss04"]
[Black "boasovietica"]
[Result "1-0"]
[WhiteElo "2729"]
[BlackElo "2479"]
[TimeControl "180+2"]
[EndTime "13:37:33 PST"]
[Termination "TheBigBoss04 won by resignation"]

1. Nf3 {[%clk 0:03:01.9]} 1... d6 {[%clk 0:02:58.3]} 2. b3 {[%clk 0:03:02.6]}
2... c5 {[%clk 0:02:58.8]} 3. Bb2 {[%clk 0:03:04.3]} 3... Nc6 {[%clk 0:03:00.1]}
4. e3 {[%clk 0:03:04.6]} 4... e5 {[%clk 0:02:55.7]} 5. c4 {[%clk 0:03:04.2]}
5... g6 {[%clk 0:02:55]} 6. d4 {[%clk 0:03:04.2]} 6... exd4 {[%clk 0:02:54.2]}
7. exd4 {[%clk 0:03:05.1]} 7... Bg7 {[%clk 0:02:55.7]} 8. Be2 {[%clk 0:03:02.6]}
8... Nge7 {[%clk 0:02:55.1]} 9. O-O {[%clk 0:03:01]} 9... Nf5 {[%clk 0:02:51.1]}
10. Re1 {[%clk 0:03:00.2]} 10... O-O {[%clk 0:02:51.5]} 11. Nc3 {[%clk
0:02:46.3]} 11... Nfxd4 {[%clk 0:02:45.1]} 12. Nxd4 {[%clk 0:02:46.4]} 12...
Nxd4 {[%clk 0:02:42.6]} 13. Qd2 {[%clk 0:02:47.6]} 13... Be6 {[%clk 0:02:39]}
14. Rad1 {[%clk 0:02:48.7]} 14... Qd7 {[%clk 0:02:37.6]} 15. Ne4 {[%clk
0:02:48.2]} 15... h6 {[%clk 0:02:32.6]} 16. Bxd4 {[%clk 0:02:46.9]} 16... Bxd4
{[%clk 0:02:31.7]} 17. Qxd4 {[%clk 0:02:44.5]} 17... cxd4 {[%clk 0:02:27.2]} 18.
Nf6+ {[%clk 0:02:45.8]} 18... Kg7 {[%clk 0:02:26.1]} 19. Nxd7 {[%clk 0:02:46.6]}
19... Bxd7 {[%clk 0:02:24.8]} 20. Rxd4 {[%clk 0:02:48.2]} 20... Rfe8 {[%clk
0:02:24.7]} 21. Rxd6 {[%clk 0:02:42.1]} 21... Bc6 {[%clk 0:02:25.3]} 22. f3
{[%clk 0:02:38.6]} 22... Re7 {[%clk 0:02:19.1]} 23. Kf2 {[%clk 0:02:39.2]} 23...
Rae8 {[%clk 0:02:20.4]} 24. Rdd1 {[%clk 0:02:40.1]} 24... Kf6 {[%clk 0:02:06.4]}
25. b4 {[%clk 0:02:35.1]} 25... Ba4 {[%clk 0:01:59.9]} 26. Rd2 {[%clk
0:02:23.8]} 26... a6 {[%clk 0:01:56.7]} 27. Rc1 {[%clk 0:02:24.2]} 27... Re3
{[%clk 0:01:49.1]} 28. Bd3 {[%clk 0:02:18.6]} 28... g5 {[%clk 0:01:45.6]} 29.
Be4 {[%clk 0:02:16.8]} 29... Ra3 {[%clk 0:01:41.3]} 30. Bxb7 {[%clk 0:02:16.3]}
30... Rb8 {[%clk 0:01:40.9]} 31. Bxa6 {[%clk 0:02:07.4]} 31... Rxb4 {[%clk
0:01:39.3]} 32. c5 {[%clk 0:02:08.4]} 32... Be8 {[%clk 0:01:30.5]} 33. c6 {[%clk
0:02:05.2]} 33... Rxa6 {[%clk 0:00:49]} 34. c7 {[%clk 0:02:04.4]} 34... Bd7
{[%clk 0:00:49.7]} 35. Rxd7 {[%clk 0:01:49.3]} 35... Rxa2+ {[%clk 0:00:48.6]}
36. Ke3 {[%clk 0:01:38.4]} 36... Rb3+ {[%clk 0:00:40.7]} 37. Rd3 {[%clk
0:01:38.5]} 37... Rbb2 {[%clk 0:00:41]} 38. c8=Q {[%clk 0:01:37]} 38... Re2+
{[%clk 0:00:40]} 1-0

[Event "*** Titled Tuesday Blitz"]
[Site "Chess.com"]
[Date "2020.01.07"]
[Round "3"]
[White "Sjakkerntobi"]
[Black "bestluluNA"]
[Result "1-0"]
[WhiteElo "2298"]
[BlackElo "2534"]
[TimeControl "180+2"]
[EndTime "13:37:41 PST"]
[Termination "Sjakkerntobi won on time"]

1. e4 {[%clk 0:03:01.9]} 1... e5 {[%clk 0:02:59.3]} 2. Nf3 {[%clk 0:03:03.2]}
2... Nc6 {[%clk 0:03:00]} 3. Bb5 {[%clk 0:03:04.6]} 3... a6 {[%clk 0:03:01.1]}
4. Ba4 {[%clk 0:03:05.8]} 4... Nf6 {[%clk 0:03:02.5]} 5. O-O {[%clk 0:03:06.9]}
5... Be7 {[%clk 0:03:04.1]} 6. Re1 {[%clk 0:03:07.2]} 6... b5 {[%clk 0:03:05.8]}
7. Bb3 {[%clk 0:03:08.4]} 7... d6 {[%clk 0:03:07.4]} 8. c3 {[%clk 0:03:08.8]}
8... O-O {[%clk 0:03:09.1]} 9. d3 {[%clk 0:03:09.8]} 9... Bb7 {[%clk 0:03:10.7]}
10. Nbd2 {[%clk 0:03:10.3]} 10... Na5 {[%clk 0:03:08.1]} 11. Bc2 {[%clk
0:03:11.1]} 11... c5 {[%clk 0:03:10]} 12. Nf1 {[%clk 0:03:12]} 12... Re8 {[%clk
0:03:10.6]} 13. Ng3 {[%clk 0:03:11.6]} 13... h6 {[%clk 0:03:11.4]} 14. d4 {[%clk
0:02:49.9]} 14... cxd4 {[%clk 0:03:03.5]} 15. cxd4 {[%clk 0:02:51.8]} 15... exd4
{[%clk 0:03:05]} 16. Nxd4 {[%clk 0:02:50.7]} 16... Bf8 {[%clk 0:03:04.6]} 17.
Ndf5 {[%clk 0:02:41.7]} 17... Rc8 {[%clk 0:01:34.4]} 18. Bf4 {[%clk 0:02:37.2]}
18... d5 {[%clk 0:00:52.8]} 19. e5 {[%clk 0:02:36.7]} 19... Nd7 {[%clk
0:00:37.5]} 20. Rc1 {[%clk 0:02:18.2]} 20... Nc4 {[%clk 0:00:35.6]} 21. Qg4
{[%clk 0:02:18.2]} 21... Kh8 {[%clk 0:00:27.7]} 22. Nxh6 {[%clk 0:02:05.4]}
22... Qe7 {[%clk 0:00:07.3]} 23. Nxf7+ {[%clk 0:01:59.7]} 23... Kg8 {[%clk
0:00:04.8]} 24. Nd6 {[%clk 0:01:56.7]} 24... Nxd6 {[%clk 0:00:03.3]} 25. Qg6
{[%clk 0:01:38.1]} 25... Qh4 {[%clk 0:00:02.3]} 26. Bg5 {[%clk 0:01:33.9]} 26...
Qh8 {[%clk 0:00:02.1]} 27. exd6 {[%clk 0:01:32.5]} 27... Rxe1+ {[%clk
0:00:03.4]} 28. Rxe1 {[%clk 0:01:28.8]} 28... Nc5 {[%clk 0:00:04.3]} 29. d7
{[%clk 0:01:22.2]} 29... Rc6 {[%clk 0:00:04.2]} 30. Qxc6 {[%clk 0:01:17.9]}
30... Bxc6 {[%clk 0:00:04.8]} 31. d8=Q {[%clk 0:01:19.1]} 31... Qh5 {[%clk
0:00:02.7]} 32. Nxh5 {[%clk 0:01:17.8]} 1-0

[Event "*** Titled Tuesday Blitz"]
[Site "Chess.com"]
[Date "2020.01.07"]
[Round "3"]
[White "Gabrielian_Artur"]
[Black "Alex_Molchanov"]
[Result "1-0"]
[WhiteElo "2799"]
[BlackElo "2578"]
[TimeControl "180+2"]
[EndTime "13:37:50 PST"]
[Termination "Gabrielian_Artur won by resignation"]

1. e4 {[%clk 0:03:01.9]} 1... c6 {[%clk 0:02:59.8]} 2. d4 {[%clk 0:03:02.5]}
2... d5 {[%clk 0:03:00.9]} 3. Nd2 {[%clk 0:03:04]} 3... dxe4 {[%clk 0:03:01.7]}
4. Nxe4 {[%clk 0:03:05.2]} 4... Bf5 {[%clk 0:03:03.2]} 5. Ng3 {[%clk 0:03:06.4]}
5... Bg6 {[%clk 0:03:04.7]} 6. c3 {[%clk 0:03:07.9]} 6... e6 {[%clk 0:02:57.2]}
7. Nh3 {[%clk 0:03:07.7]} 7... Bd6 {[%clk 0:02:55]} 8. Nf4 {[%clk 0:03:08.7]}
8... Ne7 {[%clk 0:02:45.7]} 9. h4 {[%clk 0:03:07.5]} 9... Qc7 {[%clk 0:02:43]}
10. Qf3 {[%clk 0:03:03.5]} 10... Nd7 {[%clk 0:02:34]} 11. h5 {[%clk 0:03:03.7]}
11... Bf5 {[%clk 0:02:34]} 12. h6 {[%clk 0:02:53.6]} 12... gxh6 {[%clk
0:02:16.7]} 13. Nxf5 {[%clk 0:02:52.1]} 13... Nxf5 {[%clk 0:02:12.2]} 14. g4
{[%clk 0:02:37.4]} 14... Ne7 {[%clk 0:02:05.4]} 15. Nd3 {[%clk 0:02:38.4]} 15...
O-O-O {[%clk 0:01:55]} 16. Bxh6 {[%clk 0:02:37]} 16... f5 {[%clk 0:01:46.8]} 17.
O-O-O {[%clk 0:02:35.4]} 17... Rhg8 {[%clk 0:01:46.1]} 18. gxf5 {[%clk
0:02:33.5]} 18... Nxf5 {[%clk 0:01:45.1]} 19. Bd2 {[%clk 0:02:34.3]} 19... Rdf8
{[%clk 0:01:38.8]} 20. Qe4 {[%clk 0:02:33.1]} 20... Re8 {[%clk 0:01:25.3]} 21.
Rxh7 {[%clk 0:02:33.1]} 21... Qa5 {[%clk 0:01:22.4]} 22. Rxd7 {[%clk 0:01:52.1]}
22... Kxd7 {[%clk 0:01:20.7]} 23. Ne5+ {[%clk 0:01:37.4]} 23... Bxe5 {[%clk
0:00:57.8]} 24. dxe5 {[%clk 0:01:38.2]} 24... Kc8 {[%clk 0:00:31.8]} 25. Bc4
{[%clk 0:01:38.4]} 25... Rgf8 {[%clk 0:00:27.4]} 26. Bb3 {[%clk 0:01:36.5]}
26... Kb8 {[%clk 0:00:24.4]} 27. Bg5 {[%clk 0:01:35.5]} 27... Ne7 {[%clk
0:00:18.2]} 28. Bxe6 {[%clk 0:01:25.2]} 28... Nc8 {[%clk 0:00:18.6]} 29. Bxc8
{[%clk 0:01:19]} 29... Kxc8 {[%clk 0:00:14.2]} 30. f4 {[%clk 0:01:13.6]} 30...
Qxa2 {[%clk 0:00:14.7]} 31. Kc2 {[%clk 0:01:07.4]} 31... Qa4+ {[%clk 0:00:15.4]}
32. Qxa4 {[%clk 0:01:08.1]} 1-0

[Event "*** Titled Tuesday Blitz"]
[Site "Chess.com"]
[Date "2020.01.07"]
[Round "3"]
[White "Perecke"]
[Black "vova-79"]
[Result "0-1"]
[WhiteElo "2166"]
[BlackElo "2542"]
[TimeControl "180+2"]
[EndTime "13:37:53 PST"]
[Termination "vova-79 won by resignation"]

1. e4 {[%clk 0:03:01.9]} 1... e6 {[%clk 0:02:59.9]} 2. d4 {[%clk 0:03:01.1]}
2... d5 {[%clk 0:03:00.6]} 3. Nc3 {[%clk 0:03:02.6]} 3... dxe4 {[%clk 0:03:01]}
4. Nxe4 {[%clk 0:03:04.5]} 4... Nd7 {[%clk 0:03:02.4]} 5. Nf3 {[%clk 0:03:05.2]}
5... Ngf6 {[%clk 0:03:04.3]} 6. Ng3 {[%clk 0:03:06.1]} 6... Be7 {[%clk
0:03:03.8]} 7. Bd3 {[%clk 0:03:07.4]} 7... O-O {[%clk 0:03:04.1]} 8. O-O {[%clk
0:03:07]} 8... b6 {[%clk 0:03:05.1]} 9. Qe2 {[%clk 0:03:05.8]} 9... Bb7 {[%clk
0:03:05.9]} 10. Ne5 {[%clk 0:03:04.9]} 10... c5 {[%clk 0:03:04.1]} 11. Nxd7
{[%clk 0:02:53.7]} 11... Qxd7 {[%clk 0:03:02.2]} 12. dxc5 {[%clk 0:02:54.8]}
12... Bxc5 {[%clk 0:03:01.9]} 13. Be3 {[%clk 0:02:55.9]} 13... Qd5 {[%clk
0:02:41.8]} 14. f3 {[%clk 0:02:52.6]} 14... Rfd8 {[%clk 0:02:39.3]} 15. Rad1
{[%clk 0:02:49.6]} 15... Bxe3+ {[%clk 0:02:35]} 16. Qxe3 {[%clk 0:02:51.3]}
16... Qxa2 {[%clk 0:02:35.5]} 17. b3 {[%clk 0:02:41.5]} 17... Qa3 {[%clk
0:02:34]} 18. Kh1 {[%clk 0:02:29.3]} 18... Qe7 {[%clk 0:02:29]} 19. Rfe1 {[%clk
0:02:09.4]} 19... Qc7 {[%clk 0:02:26.5]} 20. Qg5 {[%clk 0:02:04.4]} 20... h6
{[%clk 0:02:25]} 21. Qh4 {[%clk 0:01:51.6]} 21... Rd7 {[%clk 0:02:04.3]} 22. Nh5
{[%clk 0:01:16]} 22... Nxh5 {[%clk 0:01:57.8]} 23. Qxh5 {[%clk 0:01:17.9]} 23...
Rad8 {[%clk 0:01:56.7]} 24. Qg4 {[%clk 0:01:07.3]} 24... Ba6 {[%clk 0:01:40.3]}
25. Qe4 {[%clk 0:00:09.1]} 25... Bxd3 {[%clk 0:01:37.2]} 26. cxd3 {[%clk
0:00:08.9]} 26... Qc3 {[%clk 0:01:35.5]} 27. Re2 {[%clk 0:00:02.9]} 27... Rxd3
{[%clk 0:01:26.8]} 28. Rxd3 {[%clk 0:00:03]} 28... Qxd3 {[%clk 0:01:25.6]} 29.
Qe5 {[%clk 0:00:04.1]} 29... Qb1+ {[%clk 0:01:11.8]} 30. Re1 {[%clk 0:00:04.5]}
30... Rd1 {[%clk 0:01:11.1]} 0-1

[Event "*** Titled Tuesday Blitz"]
[Site "Chess.com"]
[Date "2020.01.07"]
[Round "3"]
[White "Alexander_Moskalenko"]
[Black "PotapovaM"]
[Result "1-0"]
[WhiteElo "2805"]
[BlackElo "2500"]
[TimeControl "180+2"]
[EndTime "13:37:54 PST"]
[Termination "Alexander_Moskalenko won by resignation"]

1. Nf3 {[%clk 0:03:00.7]} 1... Nf6 {[%clk 0:03:00.6]} 2. b3 {[%clk 0:03:02.6]}
2... g6 {[%clk 0:02:57.6]} 3. Bb2 {[%clk 0:03:04]} 3... Bg7 {[%clk 0:02:59]} 4.
g3 {[%clk 0:03:05.1]} 4... b6 {[%clk 0:02:52]} 5. d4 {[%clk 0:03:05.6]} 5... Bb7
{[%clk 0:02:52.6]} 6. Bg2 {[%clk 0:03:07.2]} 6... O-O {[%clk 0:02:53.1]} 7. c4
{[%clk 0:03:08.8]} 7... e6 {[%clk 0:02:53.3]} 8. O-O {[%clk 0:03:05.8]} 8... a5
{[%clk 0:02:52.7]} 9. Qc2 {[%clk 0:03:05.7]} 9... Be4 {[%clk 0:02:52.3]} 10. Qc1
{[%clk 0:03:03.9]} 10... Bb7 {[%clk 0:02:52.6]} 11. Nc3 {[%clk 0:03:05.5]} 11...
Ne4 {[%clk 0:02:48.9]} 12. d5 {[%clk 0:03:02.6]} 12... Nxc3 {[%clk 0:02:43.5]}
13. Bxc3 {[%clk 0:03:04.5]} 13... Na6 {[%clk 0:02:32.8]} 14. Bxg7 {[%clk
0:03:01.5]} 14... Kxg7 {[%clk 0:02:34.7]} 15. e4 {[%clk 0:02:55.1]} 15... Nc5
{[%clk 0:02:31.1]} 16. Qc3+ {[%clk 0:02:55.4]} 16... Kg8 {[%clk 0:02:21.2]} 17.
Rae1 {[%clk 0:02:48.8]} 17... d6 {[%clk 0:02:06]} 18. a3 {[%clk 0:02:38]} 18...
e5 {[%clk 0:02:04.2]} 19. b4 {[%clk 0:02:39.3]} 19... axb4 {[%clk 0:02:01.9]}
20. axb4 {[%clk 0:02:41.2]} 20... Nd7 {[%clk 0:01:33.8]} 21. Ra1 {[%clk
0:02:29]} 21... Qe7 {[%clk 0:01:34.7]} 22. h4 {[%clk 0:02:30.4]} 22... Nf6
{[%clk 0:01:31.7]} 23. Nd2 {[%clk 0:02:29.8]} 23... Kg7 {[%clk 0:01:20.2]} 24.
c5 {[%clk 0:02:27.7]} 24... bxc5 {[%clk 0:01:08.7]} 25. bxc5 {[%clk 0:02:29.6]}
25... dxc5 {[%clk 0:01:09.9]} 26. Rab1 {[%clk 0:02:21]} 26... Ba6 {[%clk
0:01:09.9]} 27. Rfc1 {[%clk 0:02:21.6]} 27... Nd7 {[%clk 0:01:11]} 28. Nb3
{[%clk 0:02:07.6]} 28... Rfb8 {[%clk 0:01:09.6]} 29. Ra1 {[%clk 0:02:04.3]}
29... c4 {[%clk 0:01:00]} 30. Na5 {[%clk 0:02:02.8]} 30... Qc5 {[%clk
0:00:56.8]} 31. Bh3 {[%clk 0:01:58.4]} 31... Nf6 {[%clk 0:00:44.8]} 32. Nc6
{[%clk 0:01:55.7]} 32... Rb3 {[%clk 0:00:45.6]} 33. Qxb3 {[%clk 0:01:55.1]}
33... Qxc6 {[%clk 0:00:29.4]} 34. Qe3 {[%clk 0:01:52.2]} 34... Qb7 {[%clk
0:00:17]} 35. Bf1 {[%clk 0:01:48.9]} 35... Qb4 {[%clk 0:00:10]} 36. Bxc4 {[%clk
0:01:48.3]} 36... Bb7 {[%clk 0:00:11.3]} 37. Rab1 {[%clk 0:01:48.2]} 1-0

[Event "*** Titled Tuesday Blitz"]
[Site "Chess.com"]
[Date "2020.01.07"]
[Round "3"]
[White "r31415"]
[Black "snowlord"]
[Result "0-1"]
[WhiteElo "2480"]
[BlackElo "2768"]
[TimeControl "180+2"]
[EndTime "13:38:04 PST"]
[Termination "snowlord won by checkmate"]

1. e4 {[%clk 0:02:29.2]} 1... e5 {[%clk 0:02:58.3]} 2. Nf3 {[%clk 0:02:28]} 2...
Nc6 {[%clk 0:02:59.4]} 3. Bc4 {[%clk 0:02:27.5]} 3... Nf6 {[%clk 0:03:00]} 4. d3
{[%clk 0:02:26.7]} 4... Bc5 {[%clk 0:03:01.1]} 5. c3 {[%clk 0:02:26.8]} 5... d6
{[%clk 0:03:02.1]} 6. O-O {[%clk 0:02:28.2]} 6... a6 {[%clk 0:03:02.8]} 7. Bb3
{[%clk 0:02:29.4]} 7... Ba7 {[%clk 0:03:01.5]} 8. Nbd2 {[%clk 0:02:30.8]} 8...
O-O {[%clk 0:02:47.9]} 9. Re1 {[%clk 0:02:30.5]} 9... Ng4 {[%clk 0:02:47.4]} 10.
Re2 {[%clk 0:02:31]} 10... Kh8 {[%clk 0:02:48.6]} 11. h3 {[%clk 0:02:32.3]}
11... Nh6 {[%clk 0:02:45]} 12. Nf1 {[%clk 0:02:31.7]} 12... f5 {[%clk
0:02:45.6]} 13. Bxh6 {[%clk 0:02:26.7]} 13... gxh6 {[%clk 0:02:40.3]} 14. exf5
{[%clk 0:02:16.2]} 14... Bxf5 {[%clk 0:02:42.2]} 15. d4 {[%clk 0:02:17.5]} 15...
Bxh3 {[%clk 0:02:32.9]} 16. dxe5 {[%clk 0:02:05.6]} 16... Rxf3 {[%clk
0:02:30.2]} 17. gxh3 {[%clk 0:01:19.5]} 17... Qg5+ {[%clk 0:02:05.1]} 18. Kh1
{[%clk 0:01:19.9]} 18... Rxh3+ {[%clk 0:01:47.8]} 19. Nh2 {[%clk 0:01:20.3]}
19... Qf4 {[%clk 0:00:37.1]} 20. f3 {[%clk 0:00:54.2]} 20... Nxe5 {[%clk
0:00:35.2]} 21. Bd5 {[%clk 0:00:50.4]} 21... c6 {[%clk 0:00:13.9]} 22. Be4
{[%clk 0:00:50.6]} 22... d5 {[%clk 0:00:10.6]} 23. Bb1 {[%clk 0:00:42.2]} 23...
Rg8 {[%clk 0:00:10.7]} 24. Qc2 {[%clk 0:00:42.3]} 24... Rg6 {[%clk 0:00:05.8]}
25. Qd1 {[%clk 0:00:27]} 25... Qxf3+ {[%clk 0:00:06]} 26. Rg2 {[%clk 0:00:26.9]}
26... Qxg2# {[%clk 0:00:07.1]} 0-1

[Event "*** Titled Tuesday Blitz"]
[Site "Chess.com"]
[Date "2020.01.07"]
[Round "3"]
[White "vugarrasulov"]
[Black "chesstatour"]
[Result "1-0"]
[WhiteElo "2840"]
[BlackElo "1979"]
[TimeControl "180+2"]
[EndTime "13:38:05 PST"]
[Termination "vugarrasulov won on time"]

1. Nf3 {[%clk 0:03:01.9]} 1... Nf6 {[%clk 0:02:59.5]} 2. c4 {[%clk 0:03:02.9]}
2... c5 {[%clk 0:02:54.4]} 3. Nc3 {[%clk 0:03:04.2]} 3... Nc6 {[%clk 0:02:55.1]}
4. g3 {[%clk 0:03:03.9]} 4... g6 {[%clk 0:02:55.5]} 5. Bg2 {[%clk 0:03:04.8]}
5... Bg7 {[%clk 0:02:57.2]} 6. d4 {[%clk 0:03:06.4]} 6... cxd4 {[%clk
0:02:56.8]} 7. Nxd4 {[%clk 0:03:08.3]} 7... O-O {[%clk 0:02:57.3]} 8. O-O {[%clk
0:03:09.9]} 8... Nxd4 {[%clk 0:02:49.9]} 9. Qxd4 {[%clk 0:03:10.7]} 9... d6
{[%clk 0:02:51.3]} 10. Qh4 {[%clk 0:03:12.1]} 10... Qa5 {[%clk 0:02:22.1]} 11.
Bd2 {[%clk 0:03:06.5]} 11... Qh5 {[%clk 0:02:19.7]} 12. Qxh5 {[%clk 0:03:07.8]}
12... gxh5 {[%clk 0:02:16.1]} 13. Rac1 {[%clk 0:03:05.1]} 13... Rb8 {[%clk
0:02:11.6]} 14. c5 {[%clk 0:03:00.6]} 14... Ne8 {[%clk 0:01:58.6]} 15. Nd5
{[%clk 0:02:59.3]} 15... e6 {[%clk 0:01:33.6]} 16. Ne7+ {[%clk 0:03:00.3]} 16...
Kh8 {[%clk 0:01:33.7]} 17. cxd6 {[%clk 0:03:02.2]} 17... Nxd6 {[%clk 0:01:34.3]}
18. Bb4 {[%clk 0:03:03.3]} 18... Nb5 {[%clk 0:01:16.6]} 19. e3 {[%clk
0:03:04.3]} 19... a6 {[%clk 0:00:52.1]} 20. a4 {[%clk 0:02:59.3]} 20... Na7
{[%clk 0:00:52.4]} 21. Bd6 {[%clk 0:03:00.8]} 21... Ra8 {[%clk 0:00:51.1]} 22.
b4 {[%clk 0:03:02.2]} 22... Re8 {[%clk 0:00:48.8]} 23. Rfd1 {[%clk 0:03:01.9]}
23... Bf8 {[%clk 0:00:44.1]} 24. Be5+ {[%clk 0:02:58.7]} 24... Bg7 {[%clk
0:00:42.6]} 25. Bxg7+ {[%clk 0:03:00.6]} 25... Kxg7 {[%clk 0:00:43.7]} 26. Rc7
{[%clk 0:03:02.1]} 26... Rb8 {[%clk 0:00:26.8]} 27. Rdc1 {[%clk 0:02:55.5]}
27... Nc6 {[%clk 0:00:19.4]} 28. Bxc6 {[%clk 0:02:53.4]} 28... bxc6 {[%clk
0:00:17.4]} 29. Nxc6 {[%clk 0:02:55]} 29... Rb6 {[%clk 0:00:17.7]} 30. a5 {[%clk
0:02:54.3]} 30... Rb5 {[%clk 0:00:17.8]} 31. Nd4 {[%clk 0:02:55.3]} 31... Rb8
{[%clk 0:00:14]} 32. R1c6 {[%clk 0:02:54.1]} 32... e5 {[%clk 0:00:13.7]} 33. Nf3
{[%clk 0:02:50.1]} 33... Bb7 {[%clk 0:00:13.9]} 34. Kg2 {[%clk 0:02:26]} 34...
Bxc6 {[%clk 0:00:13.5]} 35. Rxc6 {[%clk 0:02:27.9]} 35... Rxb4 {[%clk
0:00:12.4]} 36. Rxa6 {[%clk 0:02:29.1]} 36... Rb5 {[%clk 0:00:12.5]} 37. Ra7
{[%clk 0:02:30]} 37... Kf6 {[%clk 0:00:06.5]} 38. h4 {[%clk 0:02:30.4]} 38...
Rd8 {[%clk 0:00:05]} 39. Ng5 {[%clk 0:02:31.2]} 39... Rdd5 {[%clk 0:00:04.1]}
40. a6 {[%clk 0:02:26.9]} 40... Ra5 {[%clk 0:00:04.6]} 41. Rxf7+ {[%clk
0:02:27.7]} 41... Kg6 {[%clk 0:00:05.1]} 42. e4 {[%clk 0:02:17]} 42... Rd6
{[%clk 0:00:05.3]} 43. Rxh7 {[%clk 0:02:11.1]} 43... Raxa6 {[%clk 0:00:03.9]}
44. Rh8 {[%clk 0:02:11.9]} 44... Rf6 {[%clk 0:00:03.3]} 45. Nf3 {[%clk
0:02:08.8]} 45... Ra5 {[%clk 0:00:02.6]} 46. Rg8+ {[%clk 0:02:08.9]} 46... Kf7
{[%clk 0:00:02.8]} 47. Rg5 {[%clk 0:02:10.1]} 47... Ra2 {[%clk 0:00:02.3]} 48.
Rxh5 {[%clk 0:02:08.4]} 1-0

[Event "*** Titled Tuesday Blitz"]
[Site "Chess.com"]
[Date "2020.01.07"]
[Round "3"]
[White "Ariadna_Atreides"]
[Black "Bad4life"]
[Result "0-1"]
[WhiteElo "2055"]
[BlackElo "2315"]
[TimeControl "180+2"]
[EndTime "13:38:06 PST"]
[Termination "Bad4life won by resignation"]

1. d4 {[%clk 0:02:58.6]} 1... d5 {[%clk 0:02:59.9]} 2. Nf3 {[%clk 0:02:58.7]}
2... Nf6 {[%clk 0:03:00.2]} 3. c4 {[%clk 0:02:59.3]} 3... e6 {[%clk 0:03:01.5]}
4. Nc3 {[%clk 0:02:58.8]} 4... Bb4 {[%clk 0:03:02.1]} 5. e3 {[%clk 0:02:51.1]}
5... O-O {[%clk 0:03:02.1]} 6. Bd3 {[%clk 0:02:51.6]} 6... Re8 {[%clk
0:02:52.6]} 7. O-O {[%clk 0:02:50.7]} 7... b6 {[%clk 0:02:52.5]} 8. a3 {[%clk
0:02:30]} 8... dxc4 {[%clk 0:02:36.4]} 9. Bxc4 {[%clk 0:02:26.9]} 9... Bd6
{[%clk 0:02:25]} 10. e4 {[%clk 0:02:24.5]} 10... Be7 {[%clk 0:02:13.8]} 11. e5
{[%clk 0:02:17.7]} 11... Nd5 {[%clk 0:02:14.6]} 12. Nxd5 {[%clk 0:02:04.2]}
12... exd5 {[%clk 0:02:15.6]} 13. Bd3 {[%clk 0:01:56.6]} 13... Ba6 {[%clk
0:02:01.2]} 14. b4 {[%clk 0:01:48.5]} 14... Bxd3 {[%clk 0:01:51.2]} 15. Qxd3
{[%clk 0:01:49]} 15... Nd7 {[%clk 0:01:41.9]} 16. Be3 {[%clk 0:01:39.9]} 16...
Nf8 {[%clk 0:01:39.3]} 17. Rac1 {[%clk 0:01:35.9]} 17... Ne6 {[%clk 0:01:40.4]}
18. Nd2 {[%clk 0:01:29]} 18... a5 {[%clk 0:01:40.2]} 19. Rb1 {[%clk 0:01:23.3]}
19... axb4 {[%clk 0:01:39.7]} 20. axb4 {[%clk 0:01:23.6]} 20... Ra4 {[%clk
0:01:40.6]} 21. b5 {[%clk 0:01:13.1]} 21... Qd7 {[%clk 0:01:35.5]} 22. f4 {[%clk
0:01:09.1]} 22... Nxd4 {[%clk 0:01:25.2]} 23. Bxd4 {[%clk 0:00:49.9]} 23... Rxd4
{[%clk 0:01:26.1]} 24. Qe2 {[%clk 0:00:46]} 24... Qf5 {[%clk 0:01:16.8]} 25. g3
{[%clk 0:00:37.8]} 25... h5 {[%clk 0:01:15.7]} 26. Nf3 {[%clk 0:00:36.1]} 26...
Re4 {[%clk 0:01:16.9]} 27. Qa2 {[%clk 0:00:27.8]} 27... d4 {[%clk 0:01:09.6]}
28. Rfd1 {[%clk 0:00:20.9]} 28... Rd8 {[%clk 0:01:07.9]} 29. Rb3 {[%clk
0:00:18.5]} 29... Qg4 {[%clk 0:01:04.7]} 30. Kf2 {[%clk 0:00:16.8]} 30... Re3
{[%clk 0:00:56.6]} 31. Rbd3 {[%clk 0:00:07.7]} 31... Qxf3+ {[%clk 0:00:56.4]}
32. Kg1 {[%clk 0:00:07.6]} 32... Rxd3 {[%clk 0:00:56.6]} 33. Rxd3 {[%clk
0:00:07.6]} 33... Qxd3 {[%clk 0:00:56.5]} 0-1